[Event "EYCC Girls-U12 2019"]
[Site "Bratislava"]
[Date "2019.08.10"]
[Round "9.1"]
[White "Shvedova, Alexandra"]
[Black "Verheij, Dana"]
[Result "1-0"]
[ECO "B20"]
[WhiteElo "1932"]
[BlackElo "1497"]
[Annotator "NA"]
[PlyCount "101"]
[EventDate "2019.08.02"]
[EventType "swiss"]
[EventCountry "SVK"]
[SourceTitle "playchess.com"]
[Source "ChessBase"]
[SourceQuality "1"]
[TimeControl "40/5400+30:1800+30"]

1. e4 {[%emt 0:00:00]} c5 {[%emt 0:00:00]} 2. Ne2 {[%emt 0:00:00]} d6 {[%emt 0:00:00]} 3. g3 {[%emt 0:00:00]} Nc6 {[%emt 0:00:42]} 4. Bg2 {[%emt 0:00:00]} g6 {[%emt 0:00:23]} 5. c3 {[%emt 0:00:00]} Bg7 {[%emt 0:00:34]} 6. d4 {[%emt 0:00:13]} cxd4 {[%emt 0:00:27]} 7. cxd4 {[%emt 0:00:05]} e6 {[%emt 0:00:46]} 8. Nbc3 {[%emt 0:00:22]} Nge7 {[%emt 0:00:43]} 9. O-O {[%emt 0:01:54]} O-O {[%emt 0:01:32]} 10. Be3 {[%emt 0:05:35]} f5 {[%emt 0:03:15]} 11. f3 {[%emt 0:10:41]} Kh8 {[%emt 0:02:13]} 12. Rc1 {[%emt 0:01:28]} a6 {[%emt 0:02:35]} 13. d5 {[%emt 0:10:51]} Ne5 {[%emt 0:02:50]} 14. Na4 {[%emt 0:02:27]} b5 {[%emt 0:01:00]} 15. Nb6 {[%emt 0:00:48]} Rb8 {[%emt 0:00:29]} 16. Nxc8 {[%emt 0:05:38]} Rxc8 {[%emt 0:01:15]} 17. Nf4 {[%emt 0:06:14]} exd5 {[%emt 0:01:19]} 18. Ne6 {[%emt 0:04:12]} Qd7 {[%emt 0:01:15]} 19. Nxf8 {[%emt 0:00:11]} Rxf8 {[%emt 0:00:14]} 20. exd5 {[%emt 0:05:54]} Nc4 {[%emt 0:00:39]} 21. Bd4 {[%emt 0:00:09]} Qb7 {[%emt 0:09:19]} 22. f4 {[%emt 0:01:39]} Kg8 {[%emt 0:05:52]} 23. Bxg7 {[%emt 0:00:43]} Kxg7 {[%emt 0:01:05]} 24. Qd4+ {[%emt 0:00:21]} Kg8 {[%emt 0:00:34]} 25. Rfe1 {[%emt 0:00:21]} Nc8 {[%emt 0:01:13]} 26. b3 {[%emt 0:00:42]} Qb6 {[%emt 0:02:09]} 27. Qxb6 {[%emt 0:00:39]} N4xb6 {[%emt 0:00:07]} 28. Rc6 {[%emt 0:00:45]} h6 {[%emt 0:01:49]} 29. Rec1 {[%emt 0:00:14]} g5 {[%emt 0:01:10]} 30. a4 {[%emt 0:00:20]} bxa4 {[%emt 0:01:08]} 31. bxa4 {[%emt 0:00:04]} a5 {[%emt 0:00:08]} 32. Bf1 {[%emt 0:00:06]} Nxa4 {[%emt 0:07:42]} 33. Rxc8 {[%emt 0:00:05]} Nc5 {[%emt 0:00:47]} 34. Rxf8+ {[%emt 0:00:14]} Kxf8 {[%emt 0:00:06]} 35. Bb5 {[%emt 0:00:06]} Kf7 {[%emt 0:02:13]} 36. Re1 {[%emt 0:00:47]} gxf4 {[%emt 0:01:42]} 37. gxf4 {[%emt 0:00:09]} Ne4 {[%emt 0:01:38]} 38. Rxe4 {[%emt 0:00:28]} fxe4 {[%emt 0:00:09]} 39. Kf2 {[%emt 0:00:02]} Kf6 {[%emt 0:07:12]} 40. Ke3 {[%emt 0:00:00]} Kf5 {[%emt 0:00:00]} 41. Bd7+ {[%emt 0:00:25]} Kf6 {[%emt 0:04:09]} 42. Kxe4 {[%emt 0:00:07]} h5 {[%emt 0:02:01]} 43. h4 {[%emt 0:00:31]} Ke7 {[%emt 0:01:07]} 44. Ba4 {[%emt 0:00:11]} Kf6 {[%emt 0:00:55]} 45. Be8 {[%emt 0:00:16]} Ke7 {[%emt 0:01:17]} 46. Bxh5 {[%emt 0:00:11]} a4 {[%emt 0:00:51]} 47. Bd1 {[%emt 0:00:05]} a3 {[%emt 0:00:31]} 48. Bb3 {[%emt 0:00:05]} Kf6 {[%emt 0:00:27]} 49. h5 {[%emt 0:00:06]} Ke7 {[%emt 0:02:20]} 50. Kf5 {[%emt 0:00:27]} Kf7 {[%emt 0:00:21]} 51. Ba2 {[%emt 0:00:08]} 1-0

[Event "EYCC Girls-U12 2019"]
[Site "Bratislava"]
[Date "2019.08.10"]
[Round "9.2"]
[White "Huang, Wendy"]
[Black "Zhapova, Yana"]
[Result "1/2-1/2"]
[ECO "B93"]
[WhiteElo "1784"]
[BlackElo "1809"]
[Annotator "NA"]
[PlyCount "96"]
[EventDate "2019.08.02"]
[EventType "swiss"]
[EventCountry "SVK"]
[SourceTitle "playchess.com"]
[Source "ChessBase"]
[SourceQuality "1"]
[TimeControl "40/5400+30:1800+30"]

1. e4 {[%emt 0:00:00]} c5 {[%emt 0:00:22]} 2. Nf3 {[%emt 0:00:00]} d6 {[%emt 0:00:20]} 3. d4 {[%emt 0:00:00]} cxd4 {[%emt 0:00:41]} 4. Nxd4 {[%emt 0:00:00]} Nf6 {[%emt 0:00:17]} 5. Nc3 {[%emt 0:00:00]} a6 {[%emt 0:00:15]} 6. f4 {[%emt 0:00:16]} e5 {[%emt 0:06:19]} 7. Nf3 {[%emt 0:00:06]} Qc7 {[%emt 0:01:41]} 8. a4 {[%emt 0:01:52]} Nbd7 {[%emt 0:02:08]} 9. Bd3 {[%emt 0:01:40]} Be7 {[%emt 0:01:02]} 10. O-O {[%emt 0:01:34]} exf4 {[%emt 0:04:09]} 11. Kh1 {[%emt 0:08:02]} O-O {[%emt 0:02:33]} 12. Bxf4 {[%emt 0:02:38]} Ne5 {[%emt 0:04:35]} 13. Bg5 {[%emt 0:08:09]} Be6 {[%emt 0:09:06]} 14. Nd4 {[%emt 0:04:33]} Nfg4 {[%emt 0:02:59]} 15. Bxe7 {[%emt 0:11:08]} Qxe7 {[%emt 0:00:14]} 16. Qe1 {[%emt 0:01:58]} Qg5 {[%emt 0:07:05]} 17. Nf5 {[%emt 0:07:03]} Bxf5 {[%emt 0:11:16]} 18. Rxf5 {[%emt 0:03:39]} Qh6 {[%emt 0:01:09]} 19. Qg3 {[%emt 0:02:45]} b5 {[%emt 0:10:08]} 20. Nd5 {[%emt 0:07:25]} Nxd3 21. cxd3 {[%emt 0:02:37]} Ne5 {[%emt 0:03:20]} 22. Rh5 {[%emt 0:05:28]} Qe6 {[%emt 0:04:55]} 23. Nc7 {[%emt 0:04:14]} Qb3 {[%emt 0:01:23]} 24. Nxa8 {[%emt 0:01:35]} Qxb2 {[%emt 0:00:34]} 25. Rf1 {[%emt 0:09:23]} Rxa8 {[%emt 0:00:59]} 26. axb5 {[%emt 0:01:43]} axb5 {[%emt 0:04:30]} 27. Rhf5 {[%emt 0:02:37]} Qd4 {[%emt 0:02:14]} 28. Qf2 {[%emt 0:03:19]} Qxf2 {[%emt 0:01:37]} 29. R5xf2 {[%emt 0:02:07]} Nxd3 {[%emt 0:02:29]} 30. Rd2 {[%emt 0:02:15]} Nc5 {[%emt 0:00:26]} 31. Rxd6 {[%emt 0:01:49]} Nxe4 {[%emt 0:01:25]} 32. Rd4 {[%emt 0:00:52]} Nc5 {[%emt 0:01:30]} 33. Rd5 {[%emt 0:01:02]} Ne6 {[%emt 0:00:15]} 34. Rxb5 {[%emt 0:00:12]} g6 {[%emt 0:01:52]} 35. Kg1 {[%emt 0:01:11]} Kg7 {[%emt 0:00:30]} 36. Rb7 {[%emt 0:00:21]} Rf8 {[%emt 0:00:31]} 37. Re1 {[%emt 0:01:14]} Nd4 {[%emt 0:01:15]} 38. Rd7 {[%emt 0:01:01]} Nf5 {[%emt 0:03:02]} 39. Red1 {[%emt 0:01:10]} Re8 {[%emt 0:01:23]} 40. h3 {[%emt 0:00:00]} Ng3 {[%emt 0:00:00]} 41. R1d3 {[%emt 0:03:57]} Nh5 {[%emt 0:02:33]} 42. Kf2 {[%emt 0:03:38]} Nf6 {[%emt 0:00:28]} 43. Ra7 {[%emt 0:01:40]} Rb8 {[%emt 0:04:05]} 44. Kf3 {[%emt 0:02:56]} Rb4 {[%emt 0:02:31]} 45. Re7 {[%emt 0:02:50]} h5 {[%emt 0:01:00]} 46. Ra3 {[%emt 0:02:03]} Nd5 {[%emt 0:01:59]} 47. Re4 {[%emt 0:01:17]} Rb7 {[%emt 0:00:22]} 48. Rd3 {[%emt 0:01:19]} Nf6 {[%emt 0:00:34]} 1/2-1/2

[Event "EYCC Girls-U12 2019"]
[Site "Bratislava"]
[Date "2019.08.10"]
[Round "9.3"]
[White "Karaivanova, Petya"]
[Black "Vlasova, Olesia"]
[Result "0-1"]
[ECO "B35"]
[WhiteElo "1792"]
[BlackElo "1799"]
[Annotator "NA"]
[PlyCount "102"]
[EventDate "2019.08.02"]
[EventType "swiss"]
[EventCountry "SVK"]
[SourceTitle "playchess.com"]
[Source "ChessBase"]
[SourceQuality "1"]
[TimeControl "40/5400+30:1800+30"]

1. e4 {[%emt 0:00:00]} c5 {[%emt 0:00:00]} 2. Nf3 {[%emt 0:00:00]} Nc6 {[%emt 0:00:00]} 3. d4 {[%emt 0:00:00]} cxd4 {[%emt 0:00:00]} 4. Nxd4 {[%emt 0:00:00]} g6 {[%emt 0:00:00]} 5. Nc3 {[%emt 0:00:00]} Bg7 {[%emt 0:00:00]} 6. Be3 {[%emt 0:00:00]} Nf6 {[%emt 0:00:02]} 7. Bc4 {[%emt 0:00:11]} O-O {[%emt 0:00:12]} 8. Bb3 {[%emt 0:00:19]} a5 {[%emt 0:00:06]} 9. f3 {[%emt 0:00:53]} d5 {[%emt 0:00:24]} 10. exd5 {[%emt 0:02:28]} Nb4 {[%emt 0:00:05]} 11. d6 {[%emt 0:02:40]} Qxd6 {[%emt 0:01:45]} 12. Ndb5 {[%emt 0:09:42]} Qe5 {[%emt 0:01:25]} 13. Qd4 {[%emt 0:12:12]} Qf5 {[%emt 0:03:33]} 14. Qd2 {[%emt 0:09:39]} a4 {[%emt 0:03:06]} 15. Bxa4 {[%emt 0:13:02]} Rxa4 {[%emt 0:01:12]} 16. Nd4 {[%emt 0:00:05]} Qd7 {[%emt 0:03:39]} 17. Nxa4 {[%emt 0:01:43]} Qxa4 {[%emt 0:00:02]} 18. O-O {[%emt 0:05:58]} Nfd5 {[%emt 0:01:49]} 19. c3 {[%emt 0:08:28]} Nxe3 {[%emt 0:01:21]} 20. Qxe3 {[%emt 0:00:47]} Nd5 {[%emt 0:06:17]} 21. Qd2 {[%emt 0:02:57]} Qa7 {[%emt 0:01:53]} 22. Kh1 {[%emt 0:02:28]} Rd8 {[%emt 0:00:31]} 23. Nb3 {[%emt 0:03:18]} Rd6 {[%emt 0:08:13]} 24. Qe2 {[%emt 0:03:16]} Be6 {[%emt 0:01:07]} 25. Nd2 {[%emt 0:05:18]} Nf4 {[%emt 0:12:08]} 26. Qe1 {[%emt 0:04:07]} Nd3 {[%emt 0:03:58]} 27. Qh4 {[%emt 0:00:51]} Bf6 {[%emt 0:02:30]} 28. Qg3 {[%emt 0:01:29]} Nxb2 {[%emt 0:12:42]} 29. Ne4 {[%emt 0:01:46]} Rd7 {[%emt 0:00:32]} 30. Nxf6+ {[%emt 0:03:46]} exf6 {[%emt 0:00:01]} 31. Rf2 {[%emt 0:01:46]} Nd3 {[%emt 0:02:06]} 32. Rff1 {[%emt 0:01:25]} Qc5 {[%emt 0:02:13]} 33. h4 {[%emt 0:02:04]} Qxc3 {[%emt 0:00:21]} 34. Rab1 {[%emt 0:01:40]} Kg7 {[%emt 0:03:12]} 35. f4 {[%emt 0:01:49]} Bxa2 {[%emt 0:01:14]} 36. Rbd1 {[%emt 0:00:39]} Bc4 {[%emt 0:01:05]} 37. h5 {[%emt 0:00:35]} Qd4 {[%emt 0:03:21]} 38. Kh2 {[%emt 0:00:28]} Rd5 {[%emt 0:01:16]} 39. f5 {[%emt 0:00:28]} Re5 {[%emt 0:02:00]} 40. Qh3 {[%emt 0:00:00]} Re4 {[%emt 0:00:00]} 41. h6+ {[%emt 0:09:11]} Kg8 {[%emt 0:03:49]} 42. g4 {[%emt 0:01:52]} Re2+ {[%emt 0:00:15]} 43. Kh1 {[%emt 0:00:07]} Bd5+ {[%emt 0:00:42]} 44. Rf3 {[%emt 0:00:11]} Nf2+ {[%emt 0:00:32]} 45. Kg2 {[%emt 0:00:41]} Nxh3+ {[%emt 0:00:10]} 46. Kxh3 {[%emt 0:00:17]} Qxd1 {[%emt 0:00:10]} 47. Rc3 {[%emt 0:00:55]} Qh1+ {[%emt 0:00:12]} 48. Kg3 {[%emt 0:00:07]} Qg2+ {[%emt 0:00:10]} 49. Kh4 {[%emt 0:00:41]} g5+ {[%emt 0:00:06]} 50. Kh5 {[%emt 0:00:08]} Qh2+ {[%emt 0:00:06]} 51. Rh3 {[%emt 0:00:07]} Qxh3# {[%emt 0:00:02]} 0-1

[Event "EYCC Girls-U12 2019"]
[Site "Bratislava"]
[Date "2019.08.10"]
[Round "9.4"]
[White "Denic, Hana"]
[Black "Musabayeva, Diana"]
[Result "1-0"]
[ECO "B90"]
[WhiteElo "1821"]
[BlackElo "1679"]
[Annotator "NA"]
[PlyCount "240"]
[EventDate "2019.08.02"]
[EventType "swiss"]
[EventCountry "SVK"]
[SourceTitle "playchess.com"]
[Source "ChessBase"]
[SourceQuality "1"]
[TimeControl "40/5400+30:1800+30"]

1. e4 {[%emt 0:00:00]} c5 {[%emt 0:00:00]} 2. Nf3 {[%emt 0:00:00]} d6 {[%emt 0:00:00]} 3. d4 {[%emt 0:00:00]} cxd4 {[%emt 0:00:00]} 4. Nxd4 {[%emt 0:00:02]} Nf6 {[%emt 0:00:00]} 5. Nc3 {[%emt 0:00:19]} a6 {[%emt 0:00:02]} 6. Nb3 {[%emt 0:00:20]} e6 {[%emt 0:22:38]} 7. f4 {[%emt 0:03:47]} Qc7 {[%emt 0:05:49]} 8. Qf3 {[%emt 0:05:29]} b5 {[%emt 0:04:20]} 9. a3 {[%emt 0:03:52]} Bb7 {[%emt 0:03:23]} 10. Bd3 {[%emt 0:05:41]} Nbd7 {[%emt 0:03:04]} 11. g4 {[%emt 0:12:35]} Nb6 {[%emt 0:05:43]} 12. g5 {[%emt 0:05:15]} Nfd7 {[%emt 0:00:44]} 13. O-O {[%emt 0:02:28]} Be7 {[%emt 0:02:55]} 14. Qh5 {[%emt 0:07:23]} g6 {[%emt 0:07:55]} 15. Qg4 {[%emt 0:04:24]} O-O-O {[%emt 0:03:04]} 16. Be3 {[%emt 0:05:38]} h6 {[%emt 0:03:37]} 17. h4 {[%emt 0:10:56]} hxg5 {[%emt 0:01:57]} 18. hxg5 {[%emt 0:00:15]} Rh5 {[%emt 0:02:48]} 19. Kg2 {[%emt 0:00:57]} Rdh8 {[%emt 0:03:06]} 20. Rh1 {[%emt 0:01:09]} Qd8 {[%emt 0:02:35]} 21. Rxh5 {[%emt 0:05:42]} Rxh5 {[%emt 0:00:52]} 22. Rh1 {[%emt 0:01:08]} Rxh1 {[%emt 0:00:32]} 23. Kxh1 {[%emt 0:00:15]} Nc4 {[%emt 0:02:20]} 24. Bxc4 {[%emt 0:11:04]} bxc4 {[%emt 0:00:41]} 25. Nd2 {[%emt 0:00:17]} d5 {[%emt 0:01:19]} 26. exd5 {[%emt 0:01:36]} exd5 {[%emt 0:00:37]} 27. Bd4 {[%emt 0:00:53]} Kb8 {[%emt 0:03:10]} 28. Qg1 {[%emt 0:02:34]} Bc5 {[%emt 0:11:18]} 29. Nf3 {[%emt 0:08:47]} Qb6 {[%emt 0:03:55]} 30. Na4 {[%emt 0:01:22]} Bxd4 {[%emt 0:00:41]} 31. Nxb6 {[%emt 0:00:14]} Bxg1 {[%emt 0:00:09]} 32. Nxd7+ {[%emt 0:01:01]} Kc7 {[%emt 0:00:52]} 33. Nde5 {[%emt 0:00:22]} Be3 {[%emt 0:00:21]} 34. Nxf7 {[%emt 0:00:38]} d4 {[%emt 0:00:59]} 35. Kg2 {[%emt 0:00:31]} d3 {[%emt 0:00:25]} 36. cxd3 {[%emt 0:00:24]} cxd3 {[%emt 0:00:04]} 37. Kg3 {[%emt 0:00:35]} d2 {[%emt 0:00:07]} 38. Nxd2 {[%emt 0:00:07]} Bxd2 {[%emt 0:00:01]} 39. Ne5 {[%emt 0:00:51]} Be4 {[%emt 0:00:19]} 40. Nc4 {[%emt 0:00:00]} Bc1 {[%emt 0:00:00]} 41. b4 {[%emt 0:01:41]} Bd3 {[%emt 0:03:21]} 42. Ne5 {[%emt 0:00:21]} Bc2 {[%emt 0:00:42]} 43. a4 {[%emt 0:00:16]} Ba3 {[%emt 0:21:26]} 44. b5 {[%emt 0:01:36]} a5 {[%emt 0:09:43]} 45. Kg4 {[%emt 0:04:18]} Bb2 {[%emt 0:02:39]} 46. Nc4 {[%emt 0:01:05]} Bc3 {[%emt 0:00:08]} 47. Ne3 {[%emt 0:01:40]} Be4 {[%emt 0:01:38]} 48. Nc4 {[%emt 0:03:29]} Bc2 {[%emt 0:00:55]} 49. Ne3 {[%emt 0:00:19]} Be4 {[%emt 0:00:08]} 50. Nc4 {[%emt 0:00:27]} Be1 {[%emt 0:00:37]} 51. Ne5 {[%emt 0:02:32]} Bf2 {[%emt 0:00:56]} 52. Nc4 {[%emt 0:01:26]} Bb6 {[%emt 0:00:32]} 53. Ne5 {[%emt 0:01:10]} Kd6 {[%emt 0:00:29]} 54. Nf7+ {[%emt 0:01:25]} Ke6 {[%emt 0:00:50]} 55. Ne5 {[%emt 0:00:31]} Bd4 {[%emt 0:00:28]} 56. Nc4 {[%emt 0:00:53]} Bf5+ {[%emt 0:00:35]} 57. Kf3 {[%emt 0:00:44]} Bc2 {[%emt 0:00:16]} 58. Nxa5 {[%emt 0:01:55]} Bxa4 {[%emt 0:00:02]} 59. Nc6 {[%emt 0:01:12]} Bb6 {[%emt 0:00:28]} 60. Ne5 {[%emt 0:00:50]} Kf5 {[%emt 0:00:35]} 61. Nc4 {[%emt 0:00:57]} Bc5 {[%emt 0:00:28]} 62. b6 {[%emt 0:03:11]} Bb5 {[%emt 0:00:58]} 63. b7 {[%emt 0:01:17]} Bc6+ {[%emt 0:00:09]} 64. Kg3 {[%emt 0:00:35]} Bxb7 {[%emt 0:00:11]} 65. Ne5 {[%emt 0:00:18]} Bd6 {[%emt 0:00:49]} 66. Nxg6 {[%emt 0:00:43]} Kxg6 {[%emt 0:00:08]} 67. Kg4 {[%emt 0:00:13]} Bc8+ {[%emt 0:00:07]} 68. Kf3 {[%emt 0:00:05]} Kf5 {[%emt 0:00:11]} 69. Ke3 {[%emt 0:00:08]} Bxf4+ {[%emt 0:00:14]} 70. Kd4 {[%emt 0:00:09]} Bxg5 {[%emt 0:00:16]} 71. Kd5 {[%emt 0:00:15]} Bf4 {[%emt 0:00:19]} 72. Kd4 {[%emt 0:00:10]} Bb7 {[%emt 0:00:30]} 73. Kd3 {[%emt 0:00:14]} Ke5 {[%emt 0:00:30]} 74. Kc4 {[%emt 0:00:08]} Be4 {[%emt 0:00:28]} 75. Kc5 {[%emt 0:00:20]} Be3+ {[%emt 0:00:16]} 76. Kc4 {[%emt 0:00:13]} Kd6 {[%emt 0:00:25]} 77. Kc3 {[%emt 0:00:14]} Kc5 {[%emt 0:00:41]} 78. Kb3 {[%emt 0:00:14]} Bd2 {[%emt 0:00:44]} 79. Kb2 {[%emt 0:00:20]} Kb4 {[%emt 0:00:47]} 80. Ka2 {[%emt 0:00:25]} Bc1 {[%emt 0:01:05]} 81. Ka1 {[%emt 0:00:12]} Bc2 {[%emt 0:00:33]} 82. Ka2 {[%emt 0:00:07]} Kc3 {[%emt 0:00:08]} 83. Ka1 {[%emt 0:00:09]} Kc4 {[%emt 0:01:21]} 84. Ka2 {[%emt 0:00:11]} Kd3 {[%emt 0:00:44]} 85. Ka1 {[%emt 0:00:12]} Kd2 {[%emt 0:00:10]} 86. Ka2 {[%emt 0:00:09]} Kc3 {[%emt 0:00:40]} 87. Ka1 {[%emt 0:00:09]} Bf4 {[%emt 0:00:42]} 88. Ka2 {[%emt 0:00:07]} Bd6 {[%emt 0:00:13]} 89. Ka1 {[%emt 0:00:10]} Be5 {[%emt 0:00:39]} 90. Ka2 {[%emt 0:00:11]} Bf6 {[%emt 0:00:05]} 91. Ka3 {[%emt 0:00:36]} Be7+ {[%emt 0:00:14]} 92. Ka2 {[%emt 0:00:06]} Bb3+ {[%emt 0:00:29]} 93. Kb1 {[%emt 0:00:18]} Bf6 {[%emt 0:01:09]} 94. Kc1 {[%emt 0:00:21]} Bg5+ {[%emt 0:00:31]} 95. Kb1 {[%emt 0:00:07]} Bf4 {[%emt 0:01:04]} 96. Ka1 {[%emt 0:00:11]} Bc2 {[%emt 0:00:19]} 97. Ka2 {[%emt 0:00:16]} Bc1 {[%emt 0:00:04]} 98. Ka1 {[%emt 0:00:14]} Kd3 {[%emt 0:01:16]} 99. Ka2 {[%emt 0:00:15]} Ke2 {[%emt 0:00:18]} 100. Ka1 {[%emt 0:00:05]} Kd1 {[%emt 0:00:03]} 101. Ka2 {[%emt 0:00:04]} Bd2 {[%emt 0:00:38]} 102. Kb2 {[%emt 0:00:26]} Bb4 {[%emt 0:00:10]} 103. Ka2 {[%emt 0:00:22]} Kd2 {[%emt 0:00:20]} 104. Kb2 {[%emt 0:00:21]} Kd3 {[%emt 0:00:09]} 105. Ka2 {[%emt 0:00:08]} Kc3 {[%emt 0:01:11]} 106. Ka1 {[%emt 0:00:05]} Bb3 {[%emt 0:00:44]} 107. Kb1 {[%emt 0:00:22]} Ba3 {[%emt 0:00:27]} 108. Ka1 {[%emt 0:00:15]} Kd2 {[%emt 0:01:00]} 109. Kb1 {[%emt 0:00:10]} Kc3 {[%emt 0:00:32]} 110. Ka1 {[%emt 0:00:06]} Bc2 {[%emt 0:00:09]} 111. Ka2 {[%emt 0:00:03]} Bc5 {[%emt 0:00:08]} 112. Ka1 {[%emt 0:00:03]} Bd4 {[%emt 0:01:02]} 113. Ka2 {[%emt 0:00:08]} Bc5 {[%emt 0:00:09]} 114. Ka1 {[%emt 0:00:05]} Kd2 {[%emt 0:00:35]} 115. Kb2 {[%emt 0:00:08]} Bd6 {[%emt 0:00:29]} 116. Ka2 {[%emt 0:00:23]} Kc1 {[%emt 0:00:18]} 117. Ka1 {[%emt 0:00:07]} Ba4 {[%emt 0:00:57]} 118. Ka2 {[%emt 0:00:03]} Kc2 {[%emt 0:00:12]} 119. Ka1 {[%emt 0:00:03]} Be7 {[%emt 0:00:06]} 120. Ka2 {[%emt 0:00:32]} Bb3+ 1-0

[Event "EYCC Girls-U12 2019"]
[Site "Bratislava"]
[Date "2019.08.10"]
[Round "9.5"]
[White "Mikheeva, Galina"]
[Black "Buyuk, Ecrin Efsa"]
[Result "0-1"]
[ECO "B12"]
[WhiteElo "1952"]
[BlackElo "1592"]
[Annotator "NA"]
[PlyCount "92"]
[EventDate "2019.08.02"]
[EventType "swiss"]
[EventCountry "SVK"]
[SourceTitle "playchess.com"]
[Source "ChessBase"]
[SourceQuality "1"]
[TimeControl "40/5400+30:1800+30"]

1. e4 {[%emt 0:00:00]} c6 {[%emt 0:00:00]} 2. d4 {[%emt 0:00:00]} d5 {[%emt 0:00:00]} 3. e5 {[%emt 0:00:00]} Bf5 {[%emt 0:00:12]} 4. h4 {[%emt 0:00:00]} h5 {[%emt 0:00:06]} 5. Bd3 {[%emt 0:00:16]} Bxd3 {[%emt 0:01:38]} 6. Qxd3 {[%emt 0:00:08]} e6 {[%emt 0:00:13]} 7. Nf3 {[%emt 0:00:36]} Ne7 {[%emt 0:01:53]} 8. Bg5 {[%emt 0:06:36]} Qc7 {[%emt 0:13:36]} 9. b3 {[%emt 0:08:37]} Nd7 {[%emt 0:11:23]} 10. c4 {[%emt 0:09:21]} dxc4 {[%emt 0:20:56]} 11. bxc4 {[%emt 0:03:10]} c5 {[%emt 0:04:30]} 12. Bxe7 {[%emt 0:13:47]} Bxe7 {[%emt 0:00:07]} 13. Nbd2 {[%emt 0:02:49]} Rd8 {[%emt 0:07:27]} 14. Rb1 {[%emt 0:10:54]} b6 {[%emt 0:06:02]} 15. Ke2 {[%emt 0:04:45]} cxd4 {[%emt 0:09:19]} 16. Qxd4 {[%emt 0:00:12]} Nf8 {[%emt 0:01:00]} 17. Qe4 {[%emt 0:02:28]} Ng6 {[%emt 0:00:50]} 18. Nb3 {[%emt 0:03:08]} Rc8 {[%emt 0:06:43]} 19. Rbc1 {[%emt 0:01:59]} Qc6 {[%emt 0:00:56]} 20. Qxc6+ {[%emt 0:01:35]} Rxc6 {[%emt 0:00:01]} 21. g3 {[%emt 0:00:23]} O-O {[%emt 0:00:58]} 22. Nfd4 {[%emt 0:01:52]} Rc7 {[%emt 0:02:29]} 23. Nb5 {[%emt 0:02:59]} Rd7 {[%emt 0:00:15]} 24. f4 {[%emt 0:01:03]} a6 {[%emt 0:00:55]} 25. Nc3 {[%emt 0:05:32]} Ba3 {[%emt 0:03:28]} 26. Rc2 {[%emt 0:00:47]} Rc7 {[%emt 0:00:19]} 27. Nb1 {[%emt 0:04:40]} Be7 {[%emt 0:01:20]} 28. Rd1 {[%emt 0:07:43]} Rfc8 {[%emt 0:00:19]} 29. Rd4 {[%emt 0:01:02]} Bf8 {[%emt 0:01:37]} 30. N1d2 {[%emt 0:02:23]} b5 {[%emt 0:02:27]} 31. Kf3 {[%emt 0:03:06]} Ne7 {[%emt 0:00:33]} 32. Re4 {[%emt 0:01:40]} Nd5 {[%emt 0:02:12]} 33. Rc1 {[%emt 0:01:51]} Nb6 {[%emt 0:01:11]} 34. Ke2 {[%emt 0:01:01]} bxc4 {[%emt 0:01:00]} 35. Nd4 {[%emt 0:00:35]} Nd5 {[%emt 0:00:48]} 36. f5 {[%emt 0:00:15]} exf5 {[%emt 0:00:23]} 37. Nxf5 {[%emt 0:00:04]} c3 {[%emt 0:00:21]} 38. Nb3 {[%emt 0:01:00]} c2 {[%emt 0:00:32]} 39. Nd6 {[%emt 0:00:11]} Nc3+ {[%emt 0:00:36]} 40. Kd3 {[%emt 0:00:00]} Nxe4 {[%emt 0:00:00]} 41. Kxe4 {[%emt 0:05:34]} Rd8 {[%emt 0:02:29]} 42. Nd4 {[%emt 0:05:17]} Bxd6 {[%emt 0:00:18]} 43. exd6 {[%emt 0:00:03]} Rxd6 {[%emt 0:00:09]} 44. Ke5 {[%emt 0:00:26]} Rb6 {[%emt 0:00:34]} 45. Rxc2 {[%emt 0:00:35]} Rxc2 {[%emt 0:00:13]} 46. Nxc2 {[%emt 0:00:04]} Rb2 {[%emt 0:00:03]} 0-1

[Event "EYCC Girls-U12 2019"]
[Site "Bratislava"]
[Date "2019.08.10"]
[Round "9.6"]
[White "Van, Foreest Machteld"]
[Black "Schippke, Manon"]
[Result "1-0"]
[ECO "B52"]
[WhiteElo "2186"]
[BlackElo "1743"]
[Annotator "NA"]
[PlyCount "91"]
[EventDate "2019.08.02"]
[EventType "swiss"]
[EventCountry "SVK"]
[SourceTitle "playchess.com"]
[Source "ChessBase"]
[SourceQuality "1"]
[TimeControl "40/5400+30:1800+30"]

1. e4 {[%emt 0:00:00]} c5 {[%emt 0:00:00]} 2. Nf3 {[%emt 0:00:00]} d6 {[%emt 0:00:15]} 3. Bb5+ {[%emt 0:00:00]} Bd7 {[%emt 0:09:46]} 4. Bxd7+ {[%emt 0:00:41]} Nxd7 {[%emt 0:02:45]} 5. O-O {[%emt 0:00:29]} Ngf6 {[%emt 0:01:13]} 6. Re1 {[%emt 0:00:09]} Rc8 {[%emt 0:03:50]} 7. Nc3 {[%emt 0:11:10]} e6 {[%emt 0:02:18]} 8. d4 {[%emt 0:03:01]} cxd4 {[%emt 0:06:50]} 9. Nxd4 {[%emt 0:03:37]} a6 {[%emt 0:07:28]} 10. f4 {[%emt 0:15:13]} Qb6 {[%emt 0:07:18]} 11. Kh1 {[%emt 0:07:01]} e5 {[%emt 0:02:33]} 12. Nf5 {[%emt 0:07:06]} g6 {[%emt 0:02:32]} 13. Ne3 {[%emt 0:01:37]} Bg7 {[%emt 0:05:58]} 14. Ned5 {[%emt 0:02:48]} Qd8 {[%emt 0:01:27]} 15. fxe5 {[%emt 0:02:59]} Nxd5 {[%emt 0:05:53]} 16. Nxd5 {[%emt 0:01:58]} Nxe5 {[%emt 0:02:49]} 17. Rf1 {[%emt 0:03:18]} Qh4 {[%emt 0:05:52]} 18. Rf4 {[%emt 0:04:41]} Qd8 {[%emt 0:01:27]} 19. Be3 {[%emt 0:03:15]} Rc6 {[%emt 0:06:21]} 20. c3 {[%emt 0:02:18]} O-O {[%emt 0:01:14]} 21. Qe2 {[%emt 0:01:50]} f6 {[%emt 0:04:36]} 22. Raf1 {[%emt 0:01:51]} h5 {[%emt 0:02:47]} 23. a4 {[%emt 0:01:33]} a5 {[%emt 0:03:44]} 24. Qb5 {[%emt 0:00:37]} Nd7 {[%emt 0:01:34]} 25. Qxb7 {[%emt 0:00:33]} Rc4 {[%emt 0:00:58]} 26. Qb3 {[%emt 0:01:30]} Ne5 {[%emt 0:00:59]} 27. Nb6 {[%emt 0:00:29]} Qc7 {[%emt 0:00:47]} 28. Nxc4 {[%emt 0:00:34]} Qxc4 {[%emt 0:00:11]} 29. Qxc4+ {[%emt 0:01:06]} Nxc4 {[%emt 0:00:05]} 30. Bd4 {[%emt 0:00:04]} Nxb2 {[%emt 0:00:40]} 31. Bxf6 {[%emt 0:01:03]} Bxf6 {[%emt 0:01:14]} 32. Rxf6 {[%emt 0:00:04]} Rxf6 {[%emt 0:00:09]} 33. Rxf6 {[%emt 0:00:03]} Nxa4 {[%emt 0:00:17]} 34. Rxg6+ {[%emt 0:00:03]} Kf7 {[%emt 0:00:09]} 35. Rxd6 {[%emt 0:00:19]} Nxc3 {[%emt 0:00:07]} 36. e5 {[%emt 0:00:09]} a4 {[%emt 0:00:13]} 37. Ra6 {[%emt 0:00:05]} h4 {[%emt 0:00:35]} 38. Kg1 {[%emt 0:00:32]} Ke7 {[%emt 0:00:18]} 39. Kf2 {[%emt 0:00:09]} Ne4+ {[%emt 0:00:11]} 40. Ke3 {[%emt 0:00:00]} Nc5 {[%emt 0:00:00]} 41. Ra5 {[%emt 0:00:09]} Nd7 42. Rxa4 {[%emt 0:00:40]} Nxe5 {[%emt 0:00:35]} 43. Rxh4 {[%emt 0:00:06]} Kf6 {[%emt 0:00:05]} 44. Ke4 {[%emt 0:00:07]} Ng6 {[%emt 0:00:09]} 45. Rh6 {[%emt 0:00:02]} Kg5 {[%emt 0:00:14]} 46. Rxg6+ {[%emt 0:00:15]} 1-0